Workbook

Sheet прил 4
L3: Приложение 4 к Национальному стандарту бухгалтерского учета и отчетности «Индивидуальная бухгалтерская отчетность» 12.12.2016 № 104
P4: Форма
F5: ОТЧЕТ
C6: о движении денежных средств
E7: за | F7: январь | H7: - | I7: декабрь | L7: 2022 г.
C9: Организация | F9: ОАО "Универмаг "Центральный"
C10: Учетный номер плательщика | F10: 70002659
C11: Вид экономической деятельности | F11: розничная торговля
C12: Организационно-правовая форма | F12: Открытое акционерное общество
C13: Орган управления | F13: Управление торговли и услуг Могилевского горисполкма
C14: Единица измерения | F14: тыс. руб.
C15: Адрес | F15: 212030 г. Могилев , ул. Первомайская, д.61
C17: Наименование показателей | H17: Код строки | J17: За | K17: =F7 -> январь | M17: - | N17: =I7 -> декабрь | O17: За | P17: =F7 -> январь | R17: - | S17: =I7 -> декабрь
J18: =L7 -> 2022 г. | O18: 2021
C19: 1 | H19: 2 | J19: 3 | O19: 4 | P19: 4
C20: Движение денежных средств по текущей деятельности
C21: Поступило денежных средств - всего | H21: 020 | J21: =SUM(J23:N26) -> 31023 | O21: =SUM(O23:S26) -> 26038 | V21: 50, 51, 52, 55, 57, 58
C22: в том числе:
C23: от покупателей продукции, товаров, заказчиков работ, услуг | H23: 021 | J23: 30982 | O23: 25911
C24: от покупателей материалов и других запасов | H24: 022 | J24: - | O24: -
C25: роялти | H25: 023 | J25: 0 | O25: 0
C26: прочие поступления | H26: 024 | J26: 41 | O26: 127
C27: Направлено денежных средств - всего | H27: 030 | J27: =SUM(J29:N32) -> 31264 | O27: =SUM(O29:S32) -> 25391
C28: в том числе:
C29: на приобретение запасов, работ, услуг | H29: 031 | J29: 24641 | O29: 19706
C30: на оплату труда | H30: 032 | J30: 2655 | O30: 2307
C31: на уплату налогов и сборов | H31: 033 | J31: 2978 | O31: 2440
C32: на прочие выплаты | H32: 034 | J32: 990 | O32: 938
C33: Результат движения денежных средств по текущей деятельности | H33: 040 | J33: =J21-J27 -> -241 | O33: =O21-O27 -> 647
C34: Движение денежных средств по инвестиционной деятельности
C35: Поступило денежных средств - всего | H35: 050 | J35: =SUM(J37:N41) -> 78 | O35: =SUM(O37:S41) -> 107
C36: в том числе:
C37: от покупателей основных средств, нематериаль- ных активов и других долгосрочных активов | H37: 051 | J37: 13 | O37: 72
C38: возврат предоставленных займов | H38: 052 | J38: 0 | O38: 0
C39: доходы от участия в уставных капиталах других организаций | H39: 053 | J39: 1 | O39: 6
C40: проценты | H40: 054 | J40: 11 | O40: 29
C41: прочие поступления | H41: 055 | J41: 53 | O41: 0
C42: Направлено денежных средств - всего | H42: 060 | J42: =SUM(J44:N47) -> 163 | O42: =SUM(O44:S47) -> 118
C43: в том числе:
C44: на приобретение и создание основных средств, нематериальных активов и других долгосрочных активов | H44: 061 | J44: 161 | O44: 118
C45: на предоставление займов | H45: 062
C46: на вклады в уставные капиталы других организаций | H46: 063 | J46: 2
C47: прочие выплаты | H47: 064 | J47: 0 | O47: 0
C48: Результат движения денежных средств по инвестиционной деятельности | H48: 070 | J48: =J35-J42 -> -85 | O48: =O35-O42 -> -11
C49: Движение денежных средств по финансовой деятельности
C50: Поступило денежных средств - всего | H50: 080 | J50: =SUM(J52:N55) -> 3748 | O50: =SUM(O52:S55) -> 925
C51: в том числе:
C52: кредиты и займы | H52: 081 | J52: 3748 | O52: 925
C53: от выпуска акций | H53: 082 | J53: 0 | O53: 0
C54: вклады собственника имущества (учредителей, участников) | H54: 083 | J54: 0 | O54: 0
C55: прочие поступления | H55: 084 | J55: - | O55: -
C56: Направлено денежных средств - всего | H56: 090 | J56: =SUM(J58:N62) -> 3276 | O56: =SUM(O58:S62) -> 1517
C57: в том числе:
C58: на погашение кредитов и займов | H58: 091 | J58: 3135 | O58: 1336
C59: на выплаты дивидендов и других доходов от участия в уставном капитале организации | H59: 092 | J59: 141 | O59: 145
C60: на выплаты процентов | H60: 093 | J60: 0 | O60: 36
C61: на лизинговые платежи | H61: 094 | J61: 0 | O61: 0
C62: прочие выплаты | H62: 095 | J62: -
C63: Результат движения денежных средств по финансовой деятельности | H63: 100 | J63: =J50-J56 -> 472 | O63: =O50-O56 -> -592
C64: Результат движения денежных средств по текущей, инвестиционной и финансовой деятельности | H64: 110 | J64: =J33+J48+J63 -> 146 | O64: =O33+O48+O63 -> 44
C65: Остаток денежных средств и их эквивалентов на 31.12.2021 | H65: 120 | J65: 701 | O65: 657
C66: Остаток денежных средств и их эквивалентов на 31.12.2022 | H66: 130 | J66: =J65+J64 -> 847 | O66: =O65+O64 -> 701 | V66: ≠ | W66: =#REF! ->  | X66: стр.270 гр.3 ББ ≠ стр.130 гр.3 Отчета
C67: Влияние изменений курсов иностранных валют | H67: 140
C69: Руководитель | K69: В.С. Амбарцумян
F70: (подпись) | K70: (инициалы, фамилия)
C71: Главный бухгалтер | K71: М.А. Краснова
F72: (подпись) | K72: (инициалы, фамилия)
C73: 2023-03-09

Sheet Приложение (hidden)
A1: =ROW() -> 1 | B1: А. Сельское, лесное и рыбное хозяйство, 011-017 | C1: 1.5 | D1: 0.2
A2: =ROW() -> 2 | B2: А. Сельское, лесное и рыбное хозяйство, 021-024 | C2: 1.5 | D2: 0.2
A3: =ROW() -> 3 | B3: А. Сельское, лесное и рыбное хозяйство, 031-032 | C3: 1.5 | D3: 0.2
A4: =ROW() -> 4 | B4: В. Горнодобывающая промышленность, 051-052, 061-062, 071-072, 081, 089, 091 | C4: 1.7 | D4: 0.3
A5: =ROW() -> 5 | B5: В. Горнодобывающая промышленность, 099 | C5: 1.2 | D5: 0.15
A6: =ROW() -> 6 | B6: С. Обрабатывающая промышленность, 101, 104-109 | C6: 1.3 | D6: 0.2
A7: =ROW() -> 7 | B7: С. Обрабатывающая промышленность, 102-103 | C7: 1.7 | D7: 0.3
A8: =ROW() -> 8 | B8: С. Обрабатывающая промышленность, 110, 120 | C8: 1.7 | D8: 0.3
A9: =ROW() -> 9 | B9: С. Обрабатывающая промышленность, 131-133, 139, 141-143, 151-152 | C9: 1.3 | D9: 0.2
A10: =ROW() -> 10 | B10: С. Обрабатывающая промышленность, 161-162, 171-172, 181-182 | C10: 1.3 | D10: 0.2
A11: =ROW() -> 11 | B11: С. Обрабатывающая промышленность, 191 | C11: 1.4 | D11: 0.2
A12: =ROW() -> 12 | B12: С. Обрабатывающая промышленность, 192 | C12: 1.7 | D12: 0.3
A13: =ROW() -> 13 | B13: С. Обрабатывающая промышленность, подкласс 19201 | C13: 1.4 | D13: 0.2
A14: =ROW() -> 14 | B14: С. Обрабатывающая промышленность, 201-206, 211-212 | C14: 1.4 | D14: 0.2
A15: =ROW() -> 15 | B15: С. Обрабатывающая промышленность, 221-222 | C15: 1.3 | D15: 0.2
A16: =ROW() -> 16 | B16: С. Обрабатывающая промышленность, 231-237, 239 | C16: 1.2 | D16: 0.15
A17: =ROW() -> 17 | B17: С. Обрабатывающая промышленность, 241, 242, 244, 245 | C17: 1.3 | D17: 0.2
A18: =ROW() -> 18 | B18: С. Обрабатывающая промышленность, 243 | C18: 1.2 | D18: 0.15
A19: =ROW() -> 19 | B19: С. Обрабатывающая промышленность, 251 | C19: 1.2 | D19: 0.15
A20: =ROW() -> 20 | B20: С. Обрабатывающая промышленность, 252-257, 259 | C20: 1.3 | D20: 0.2
A21: =ROW() -> 21 | B21: С. Обрабатывающая промышленность, 261-267 | C21: 1.3 | D21: 0.2
A22: =ROW() -> 22 | B22: С. Обрабатывающая промышленность, 268 | C22: 1.4 | D22: 0.2
A23: =ROW() -> 23 | B23: С. Обрабатывающая промышленность, 271-275, 279 | C23: 1.3 | D23: 0.2
A24: =ROW() -> 24 | B24: С. Обрабатывающая промышленность, 281-282, 284, 289 | C24: 1.3 | D24: 0.2
A25: =ROW() -> 25 | B25: С. Обрабатывающая промышленность, 283 | C25: 1.6 | D25: 0.1
A26: =ROW() -> 26 | B26: С. Обрабатывающая промышленность, 291-293, 301-304, 309 | C26: 1.3 | D26: 0.2
A27: =ROW() -> 27 | B27: С. Обрабатывающая промышленность, 310, 321-322, 324, 329 | C27: 1.7 | D27: 0.3
A28: =ROW() -> 28 | B28: С. Обрабатывающая промышленность, 323, 325, 331-332 | C28: 1.3 | D28: 0.2
A29: =ROW() -> 29 | B29: D. Снабжение электроэнергией, газом, паром, горячей водой и кондиционированным воздухом, 351 | C29: 1.1 | D29: 0.25
A30: =ROW() -> 30 | B30: D. Снабжение электроэнергией, газом, паром, горячей водой и кондиционированным воздухом, 352 | C30: 1.01 | D30: 0.3
A31: =ROW() -> 31 | B31: D. Снабжение электроэнергией, газом, паром, горячей водой и кондиционированным воздухом, 353 | C31: 1.1 | D31: 0.1
A32: =ROW() -> 32 | B32: 5. Е. Водоснабжение; сбор, обработка и удаление отходов, деятельность по ликвидации загрязнений, 360-370, 381-382, 390 | C32: 1.1 | D32: 0.1
A33: =ROW() -> 33 | B33: 5. Е. Водоснабжение; сбор, обработка и удаление отходов, деятельность по ликвидации загрязнений, 383 | C33: 1.7 | D33: 0.3
A34: =ROW() -> 34 | B34: 6. F. Строительство, 411 | C34: 1.1 | D34: 0.1
A35: =ROW() -> 35 | B35: 6. F. Строительство, 412, 421-422, 429, 431-433, 439 | C35: 1.2 | D35: 0.15
A36: =ROW() -> 36 | B36: 7. G. Оптовая и розничная торговля; ремонт автомобилей и мотоциклов, 451-454, 461-467, 469, 471-479 | C36: 1 | D36: 0.1
A37: =ROW() -> 37 | B37: 8. H. Транспортная деятельность, складирование, почтовая и курьерская деятельность, 491-495, 501-504, 511-512, 521-522 | C37: 1.15 | D37: 0.15
A38: =ROW() -> 38 | B38: 8. H. Транспортная деятельность, складирование, почтовая и курьерская деятельность, 531-532 | C38: 1 | D38: 0.05
A39: =ROW() -> 39 | B39: 9. I. Услуги по временному проживанию и питанию, 551-553, 559 | C39: 1.1 | D39: 0.1
A40: =ROW() -> 40 | B40: 9. I. Услуги по временному проживанию и питанию, 561-563 | C40: 1 | D40: 0.1
A41: =ROW() -> 41 | B41: 10. J. Информация и связь, 581 | C41: 1.1 | D41: 0.15
A42: =ROW() -> 42 | B42: 10. J. Информация и связь, 582 | C42: 1.3 | D42: 0.2
A43: =ROW() -> 43 | B43: 10. J. Информация и связь, 591 | C43: 1.1 | D43: 0.1
A44: =ROW() -> 44 | B44: 10. J. Информация и связь, 592 | C44: 1.1 | D44: 0.15
A45: =ROW() -> 45 | B45: 10. J. Информация и связь, 601-602, 611-613, 619 | C45: 1.1 | D45: 0.15
A46: =ROW() -> 46 | B46: 10. J. Информация и связь, 620, 631 | C46: 1.3 | D46: 0.2
A47: =ROW() -> 47 | B47: 10. J. Информация и связь, 639 | C47: 1.1 | D47: 0.1
A48: =ROW() -> 48 | B48: K. Финансовая и страховая деятельность, 641-643 | C48: 1.5 | D48: 0.2
A49: =ROW() -> 49 | B49: K. Финансовая и страховая деятельность, 649 | C49: 1.1 | D49: 0.1
A50: =ROW() -> 50 | B50: K. Финансовая и страховая деятельность, 651-653, 661-663 | C50: 1.5 | D50: 0.2
A51: =ROW() -> 51 | B51: L. Операции с недвижимым имуществом, 681-682 | C51: 1.1 | D51: 0.1
A52: =ROW() -> 52 | B52: L. Операции с недвижимым имуществом, 683 | C52: 1 | D52: 0.05
A53: =ROW() -> 53 | B53: М. Профессиональная, научная и техническая деятельность, 691-692, 701-702, 711 | C53: 1 | D53: 0.05
A54: =ROW() -> 54 | B54: М. Профессиональная, научная и техническая деятельность, 712 | C54: 1.2 | D54: 0.15
A55: =ROW() -> 55 | B55: М. Профессиональная, научная и техническая деятельность, 721-722 | C55: 1.15 | D55: 0.2
A56: =ROW() -> 56 | B56: М. Профессиональная, научная и техническая деятельность, 731 | C56: 1.2 | D56: 0.15
A57: =ROW() -> 57 | B57: М. Профессиональная, научная и техническая деятельность, 732 | C57: 1 | D57: 0.05
A58: =ROW() -> 58 | B58: М. Профессиональная, научная и техническая деятельность, 741, 743, 749 | C58: 1.2 | D58: 0.15
A59: =ROW() -> 59 | B59: М. Профессиональная, научная и техническая деятельность, 742 | C59: 1.1 | D59: 0.1
A60: =ROW() -> 60 | B60: М. Профессиональная, научная и техническая деятельность, 750 | C60: 1.5 | D60: 0.2
A61: =ROW() -> 61 | B61: 14. N. Деятельность в сфере административных и вспомогательных услуг, 771-773 | C61: 1.1 | D61: 0.1
A62: =ROW() -> 62 | B62: 14. N. Деятельность в сфере административных и вспомогательных услуг, 774 | C62: 1 | D62: 0.05
A63: =ROW() -> 63 | B63: 14. N. Деятельность в сфере административных и вспомогательных услуг, 781-783 | C63: 1.2 | D63: 0.15
A64: =ROW() -> 64 | B64: 14. N. Деятельность в сфере административных и вспомогательных услуг, 791, 799 | C64: 1.15 | D64: 0.15
A65: =ROW() -> 65 | B65: 14. N. Деятельность в сфере административных и вспомогательных услуг, 801-803 | C65: 1.2 | D65: 0.15
A66: =ROW() -> 66 | B66: 14. N. Деятельность в сфере административных и вспомогательных услуг, 811-812 | C66: 1.1 | D66: 0.1
A67: =ROW() -> 67 | B67: 14. N. Деятельность в сфере административных и вспомогательных услуг, 813 | C67: 1.5 | D67: 0.2
A68: =ROW() -> 68 | B68: 14. N. Деятельность в сфере административных и вспомогательных услуг, 821-823, 829 | C68: 1.2 | D68: 0.15
A69: =ROW() -> 69 | B69: 15. Q. Здравоохранение и социальные услуги, 861 | C69: 1.1 | D69: 0.1
A70: =ROW() -> 70 | B70: 16. R. Творчество, спорт, развлечения и отдых, 931 | C70: 1.1 | D70: 0.1
A71: =ROW() -> 71 | B71: 17. S. Предоставление прочих видов услуг, 941-942, 949 | C71: 1.1 | D71: 0.1
A72: =ROW() -> 72 | B72: 17. S. Предоставление прочих видов услуг, 951 | C72: 1.3 | D72: 0.2
A73: =ROW() -> 73 | B73: 17. S. Предоставление прочих видов услуг, 952 | C73: 1 | D73: 0.1
A74: =ROW() -> 74 | B74: 17. S. Предоставление прочих видов услуг, 960 | C74: 1.1 | D74: 0.1
A75: =ROW() -> 75 | B75: 18. Прочие виды экономической деятельности | C75: 1.5 | D75: 0.2
